{"text_format":"1","workbook":"xlsx","n_sheets":1,"sheets":["МО"],"not_rendered":{"charts":0,"images":0,"macros":1,"external_links":0,"defined_names":1,"comments":0,"pivot_tables":0},"unopened":[],"bounds":{"document_bytes":16777216,"sheet_cells":100000,"rows_first":2000,"rows_last":500,"rows_between":2000,"halvings":0,"cell_chars":16384,"cell_head_chars":4096},"cells_cut":0,"cells_raw":0,"read":"whole","date_system":"1900"}

{"sheet":"МО","index":0,"n_rows":33,"n_cols":12,"rows_kept":33,"cut":false,"hidden":false,"merged":[[24,0,24,9],[4,0,6,0],[21,0,21,10],[22,0,22,10],[4,2,6,2],[4,3,5,4],[5,5,5,6],[5,7,5,8],[4,1,6,1],[5,9,5,10],[1,0,1,10],[3,9,3,10],[4,5,4,10],[0,0,0,10],[2,0,2,10]]}
["Сведения о расходах на реализацию целевых программ",null,null,null,null,null,null,null,null,null,null,"форма № 3"]
["Алексеевского сельского  поселения"]
["на 01 июля 2013 года"]
[null,null,null,null,null,null,null,null,null,"(в рублях с копейками)"]
["Вид про-грам-мы","Наименование программ","Коды строк","Всего по местным бюджетам,",null,"в том числе за счет средств "]
[null,null,null,null,null,"федерального бюджета",null,"областного бюджета",null,"местного бюджета"]
[null,null,null,"годовые назначения","кассовое исполнение с начала года","годовые назначения","кассовое исполнение с начала года","годовые назначения","кассовое исполнение с начала года","годовые назначения","кассовое исполнение с начала года"]
["А",1,2,"3=5+7+9","4=6+8+10",5,6,7,8,"9","10"]
["муниципальная программа","Долгосрочная целевая программа поселения \"Культура Алексеевского сельского поселения Октябрьского района на 2010 - 2014 годы\"","01",{"$f":"F9+H9+J9","v":3245100},{"$f":"G9+I9+K9","v":1676504.03},0,0,0,0,3245100,1676504.03]
["муниципальная программа","Долгосрочная целевая программа \"Пожарная безопасность и защита населения и территорий Алексеевского сельского поселения от чрезвычайных ситуаций на 2011 - 2014 годы\"","02",{"$f":"F10+H10+J10","v":42200},{"$f":"G10+I10+K10","v":35230.22},0,0,0,0,42200,35230.22]
["муниципальная программа","Долгосрочная целевая программа \"Благоустройство: озеленение и освещение территории Алексеевского сельского поселения Октябрьского района на 2011-2014 г.\"","03",1406900,742758.67,0,0,0,0,1406900,742758.67]
["муниципальная программа","Долгосрочная целевая программа \"Развитие дорог и улично-дорожной сети Алексеевского сельского поселения Октябрьского района на 2011-2014 г.\"","04",1961400,448193,0,0,404400,391193,1557000,57000]
["муниципальная программа","Долгосрочная программа \"Социальная поддержка и социальное обслуживание населения Алексеевского сельского поселения на 2011-2014 годы\"","05",0,0,0,0,0,0,0,0]
["муниципальная программа","Долгосрочная целевая программа \"Строительство, реконструкция, капитальный ремонт инженерной инфраструктуры Алексеевского сельского поселения Октябрьского района на 2011 - 2014 г.\"","07",{"$f":"F14+H14+J14","v":54677000},15240224,7155000,0,43593700,13960000,3928300,1280224]
["муниципальная программа","Догосрочная целевая программа Алексеевского сельского поселения Октябрьского района в области охраны окружающей среды и рационального природопользования на 2011 - 2015 годы","08",37185.800000000003,37185.800000000003,0,0,0,0,37185.800000000003,37185.800000000003]
["муниципальная программа","Долгосрочная целевая программа \"По профилактике терроризма и экстремизма, а также минимизации и (или) ликвидации последствий проявления терроризма экстремизма на территории Алексеевского сельского поселения на 2011-2013 г.г.\"","10",{"$f":"F16+H16+J16","v":22000},{"$f":"G16+I16+K16","v":0},0,0,0,0,22000,0]
["муниципальная программа","Программа \"Противодействие коррупции в муниципальном образовании \"Алексеевское сельское поселение\" на 2012 - 2013 г.г.\"","11",{"$f":"F17+H17+J17","v":7000},{"$f":"G17+I17+K17","v":0},0,0,0,0,7000,0]
[null,"ВСЕГО ПО ПРОГРАММАМ","100",{"$f":"D19+D20","v":61398785.799999997},{"$f":"E19+E20","v":18180095.720000003},{"$f":"F15+F14+F13+F12+F11+F10+F9+F16+F17","v":7155000},{"$f":"G15+G14+G13+G12+G11+G10+G9","v":0},{"$f":"H15+H14+H13+H12+H11+H10+H9+H16+H17","v":43998100},{"$f":"I15+I14+I13+I12+I11+I10+I9","v":14351193},{"$f":"J15+J14+J13+J12+J11+J10+J9+J16+J17","v":10245685.800000001},{"$f":"K15+K14+K13+K12+K11+K10+K9","v":3828902.7200000007}]
[null," - на реализацию муниципальных программ","100.01",{"$f":"D9+D10+D11+D12+D13+D14+D15+D16+D17","v":61398785.799999997},{"$f":"E9+E10+E11+E12+E13+E14+E15","v":18180095.720000003},7155000,0,{"$f":"H9+H10+H11+H12+H13+H14+H15+H16+H17","v":43998100},14351193,{"$f":"J9+J10+J11+J12+J13+J14+J15+J16+J17","v":10245685.800000001},3828902.7199999997]
[null," - на реализацию региональных программ","100.02",0,0,0,0,0,0,0,0]
[]
["* данные по строке 100 должны соответствовать данным по строке 10100 \"Региональные и муниципальные программы (без ФАИП)\" Справочной таблицы к отчету об исполнении консолидированного бюджета субъекта Российской Федерации (ф.0503387)"]
["** по региональным программам отражаются средства, запланированные к поступлению в местные бюджеты в виде межбюджетных трансфертов областного бюджета, в случае их невключения в аналогичные муниципальные программы"]
[]
["Примечание: Сведения представляются финансовыми органами городских округов и финансовыми органами муниципальных районов с учетом данных городских и сельских поселений"]
[]
[]
[null,"Глава Алексеевского сельского поселения",null,null,"Н.И.Лофиченко"]
[]
[null,"Главный бухгалтер",null,null,"В.Г.Горькова"]
[]
[null,"Начальник службы экономики и финансов",null,null,"Е.В.Клименко"]
[null,"исполнитель 8 (86360)3-35-24 телефон"]